fUSD/lending_fUSD_20240516
["ID","MTS","AMOUNT","RATE_DAILY","PERIOD"]
[327128153,1715845846894,-1033084.0,0.000112,2]
[327128154,1715845846903,-212.65714403,0.00011222,2]
[327128155,1715845846913,-282.94266462,0.00011267,2]
[327128156,1715845846922,-531.0,0.00011272,2]
[327128157,1715845846932,-500.0,0.00011272,2]
[327128158,1715845846941,-500.0,0.00011272,2]
[327128159,1715845846954,-694.77,0.00011272,2]
[327128160,1715845846963,-500.0,0.00011272,2]
[327128161,1715845846972,-500.0,0.00011272,2]
[327128162,1715845846982,-1724.48,0.00011272,2]
[327128163,1715845846992,-618.16,0.00011272,2]
[327128164,1715845847001,-500.0,0.00011272,2]
[327128165,1715845847011,-883.82,0.00011272,2]
[327128166,1715845847020,-348.85823801,0.00011272,2]
[327128167,1715845847031,-212.65714403,0.00011272,2]
[327128168,1715845847042,-500.0,0.00011272,2]
[327128169,1715845847052,-888.68,0.00011272,2]
[327128170,1715845847061,-850.47,0.00011272,2]
[327128171,1715845847070,-500.0,0.00011272,2]
[327128172,1715845847079,-500.0,0.00011272,2]
[327128173,1715845847089,-774.97,0.00011272,2]
[327128174,1715845847099,-500.8,0.00011272,2]
[327128175,1715845847108,-7913.77,0.00011272,2]
[327128176,1715845847117,-500.0,0.00011272,2]
[327128177,1715845847128,-500.0,0.00011272,2]
[327128178,1715845847138,-500.0,0.00011272,2]
[327128179,1715845847149,-500.0,0.00011272,2]
[327128180,1715845847158,-673.83,0.00011272,2]
[327128181,1715845847168,-660.08,0.00011272,2]
[327128182,1715845847178,-100000.0,0.00011273,2]
[327128183,1715845847188,-1000.0,0.00011273,2]
[327128184,1715845847198,-212.65714403,0.00011322,2]
[327128185,1715845847207,-151.24,0.00011341,2]
[327128186,1715845847217,-500.0,0.0001137,2]
[327128187,1715845847227,-500.0,0.0001137,2]
[327128188,1715845847236,-500.0,0.0001137,2]
[327128189,1715845847246,-281.80846172,0.0001137,2]
[327128190,1715845847255,-6532.31,0.0001137,2]
[327128191,1715845847265,-500.0,0.0001137,2]
[327128192,1715845847275,-348.76,0.0001137,2]
[327128193,1715845847284,-500.0,0.0001137,2]
[327128194,1715845847294,-514.19,0.0001137,2]
[327128195,1715845847303,-500.0,0.0001137,2]
[327128196,1715845847313,-918.24,0.0001137,2]
[327128197,1715845847322,-500.0,0.0001137,2]
[327128198,1715845847332,-500.0,0.0001137,2]
[327128199,1715845847341,-500.0,0.0001137,2]
[327128200,1715845847351,-500.0,0.0001137,2]
[327128201,1715845847361,-500.0,0.0001137,2]
[327128202,1715845847370,-500.0,0.0001137,2]
[327128203,1715845847379,-500.0,0.0001137,2]
[327128204,1715845847389,-500.0,0.0001137,2]
[327128205,1715845847400,-591.29,0.0001137,2]
[327128206,1715845847409,-2681.51,0.0001137,2]
[327128207,1715845847419,-500.0,0.0001137,2]
[327128208,1715845847428,-500.0,0.0001137,2]
[327128209,1715845847437,-500.47,0.0001137,2]
[327128210,1715845847447,-500.0,0.0001137,2]
[327128211,1715845847456,-571.1,0.0001137,2]
[327128212,1715845847465,-858.13,0.0001137,2]
[327128213,1715845847475,-545.93,0.0001137,2]
[327128214,1715845847486,-1319.7,0.0001137,2]
[327128215,1715845847496,-500.0,0.0001137,2]
[327128216,1715845847505,-500.0,0.0001137,2]
[327128217,1715845847515,-775.45,0.0001137,2]
[327128218,1715845847525,-500.0,0.0001137,2]
[327128219,1715845847534,-500.0,0.0001137,2]
[327128220,1715845847544,-500.0,0.0001137,2]
[327128221,1715845847553,-500.0,0.0001137,2]
[327128222,1715845847563,-773.8,0.0001137,2]
[327128223,1715845847572,-500.0,0.0001137,2]
[327128224,1715845847641,-500.0,0.0001137,2]
[327128225,1715845847650,-500.0,0.0001137,2]
[327128226,1715845847660,-500.0,0.0001137,2]
[327128227,1715845847669,-500.0,0.0001137,2]
[327128228,1715845847678,-658.95,0.0001137,2]
[327128229,1715845847688,-1873.23,0.0001137,2]
[327128230,1715845847697,-500.0,0.0001137,2]
[327128231,1715845847706,-500.0,0.0001137,2]
[327128232,1715845847715,-661.94,0.0001137,2]
[327128233,1715845847725,-510.23367806,0.0001137,2]
[327128234,1715845847735,-1025.09,0.0001137,2]
[327128235,1715845847744,-500.0,0.0001137,2]
[327128236,1715845847753,-2725.83,0.0001137,2]
[327128237,1715845847763,-500.0,0.0001137,2]
[327128238,1715845847772,-507.37856364,0.0001137,2]
[327128239,1715845847781,-500.0,0.0001137,2]
[327128240,1715845847790,-707.3,0.0001137,2]
[327128241,1715845847800,-2067.99,0.0001137,2]
[327128242,1715845847809,-500.0,0.0001137,2]
[327128243,1715845847818,-500.0,0.00011371,2]
[327128244,1715845847828,-500.0,0.00011371,2]
[327128245,1715845847837,-500.0,0.00011371,2]
[327128246,1715845847847,-500.0,0.00011371,2]
[327128247,1715845847856,-500.0,0.00011371,2]
[327128248,1715845847865,-500.0,0.00011371,2]
[327128249,1715845847874,-500.0,0.00011371,2]
[327128250,1715845847883,-500.0,0.00011371,2]
[327128251,1715845847893,-614.08,0.00011371,2]
[327128252,1715845847903,-500.0,0.00011371,2]
[327128253,1715845847912,-500.0,0.00011371,2]
[327128254,1715845847921,-500.0,0.00011371,2]
[327128255,1715845847930,-500.0,0.00011371,2]
[327128256,1715845847944,-793.58,0.00011371,2]
[327128257,1715845847953,-500.0,0.00011371,2]
[327128258,1715845847963,-500.0,0.00011371,2]
[327128259,1715845847972,-500.0,0.00011371,2]
[327128260,1715845847982,-500.0,0.00011371,2]
[327128261,1715845847992,-500.0,0.00011371,2]
[327128262,1715845848001,-500.0,0.00011371,2]
[327128263,1715845848011,-500.0,0.00011371,2]
[327128264,1715845848022,-500.0,0.00011371,2]
[327128265,1715845848032,-500.0,0.00011371,2]
[327128266,1715845848042,-500.0,0.00011371,2]
[327128267,1715845848051,-500.0,0.00011371,2]
[327128268,1715845848060,-588.2,0.00011371,2]
[327128269,1715845848070,-523.32,0.00011371,2]
[327128270,1715845848079,-500.0,0.00011371,2]
[327128271,1715845848089,-500.0,0.00011371,2]
[327128272,1715845848098,-500.0,0.00011371,2]
[327128273,1715845848107,-150.0,0.00011371,2]
[327128274,1715845848116,-500.0,0.00011371,2]
[327128275,1715845848126,-500.0,0.00011371,2]
[327128276,1715845848135,-500.0,0.00011371,2]
[327128277,1715845848145,-500.0,0.00011371,2]
[327128278,1715845848154,-500.0,0.00011371,2]
[327128279,1715845848163,-488.18615281,0.00011371,2]
[327128280,1715845848173,-500.0,0.00011371,2]
[327128281,1715845848183,-500.0,0.00011371,2]
[327128282,1715845848193,-500.0,0.00011371,2]
[327128283,1715845848203,-500.0,0.00011371,2]
[327128284,1715845848212,-511.64,0.00011371,2]
[327128285,1715845848222,-500.0,0.00011371,2]
[327128286,1715845848232,-500.0,0.00011371,2]
[327128287,1715845848241,-500.0,0.00011371,2]
[327128288,1715845848250,-500.0,0.00011371,2]
[327128289,1715845848260,-500.0,0.00011371,2]
[327128290,1715845848269,-3608.27,0.00011371,2]
[327128291,1715845848278,-2738.01,0.00011371,2]
[327128292,1715845848289,-500.0,0.00011371,2]
[327128293,1715845848298,-500.0,0.00011371,2]
[327128294,1715845848308,-678.88,0.00011371,2]
[327128295,1715845848318,-500.0,0.00011371,2]
[327128296,1715845848327,-1806.07,0.00011371,2]
[327128297,1715845848336,-500.0,0.00011371,2]
[327128298,1715845848345,-516.43,0.00011371,2]
[327128299,1715845848355,-500.0,0.00011371,2]
[327128300,1715845848364,-7315.26,0.00011371,2]
[327128301,1715845848374,-500.0,0.00011371,2]
[327128302,1715845848383,-841.0,0.00011371,2]
[327128303,1715845848393,-531.0,0.00011371,2]
[327128304,1715845848402,-736.45,0.00011371,2]
[327128305,1715845848412,-500.0,0.00011371,2]
[327128306,1715845848421,-500.0,0.00011371,2]
[327128307,1715845848431,-937.61,0.00011371,2]
[327128308,1715845848440,-500.0,0.00011371,2]
[327128309,1715845848449,-669.88,0.00011371,2]
[327128310,1715845848458,-500.0,0.00011371,2]
[327128311,1715845848467,-834.1,0.00011371,2]
[327128312,1715845848477,-500.0,0.00011371,2]
[327128313,1715845848486,-694.77,0.00011371,2]
[327128314,1715845848496,-500.0,0.00011371,2]
[327128315,1715845848506,-621.06,0.00011371,2]
[327128316,1715845848515,-500.0,0.00011371,2]
[327128317,1715845848526,-500.0,0.00011371,2]
[327128318,1715845848535,-522.77,0.00011371,2]
[327128319,1715845848546,-1724.48,0.00011371,2]
[327128320,1715845848558,-500.0,0.00011371,2]
[327128321,1715845848568,-500.0,0.00011371,2]
[327128322,1715845848578,-500.0,0.00011371,2]
[327128323,1715845848588,-500.0,0.00011371,2]
[327128324,1715845848597,-1104.67,0.00011371,2]
[327128325,1715845848606,-883.82,0.00011371,2]
[327128326,1715845848618,-500.0,0.00011371,2]
[327128327,1715845848628,-500.0,0.00011371,2]
[327128328,1715845848637,-500.0,0.00011371,2]
[327128329,1715845848646,-888.68,0.00011371,2]
[327128330,1715845848655,-594.67,0.00011371,2]
[327128331,1715845848664,-850.47,0.00011371,2]
[327128332,1715845848674,-500.0,0.00011371,2]
[327128333,1715845848683,-1615.84,0.00011371,2]
[327128334,1715845848692,-994.71,0.00011371,2]
[327128335,1715845848702,-500.0,0.00011371,2]
[327128336,1715845848711,-774.97,0.00011371,2]
[327128337,1715845848721,-500.0,0.00011371,2]
[327128338,1715845848731,-500.0,0.00011371,2]
[327128339,1715845848741,-1028.95,0.00011371,2]
[327128340,1715845848750,-950.37,0.00011371,2]
[327128341,1715845848760,-500.8,0.00011371,2]
[327128342,1715845848769,-500.0,0.00011371,2]
[327128343,1715845848778,-1163.53,0.00011371,2]
[327128344,1715845848788,-500.0,0.00011371,2]
[327128345,1715845848798,-500.0,0.00011371,2]
[327128346,1715845848808,-1102.54,0.00011371,2]
[327128347,1715845848817,-500.0,0.00011371,2]
[327128348,1715845848827,-508.95983213,0.00011371,2]
[327128349,1715845848837,-7913.77,0.00011371,2]
[327128350,1715845848848,-500.0,0.00011371,2]
[327128351,1715845848858,-797.35,0.00011371,2]
[327128352,1715845848869,-546.42,0.00011371,2]
[327128353,1715845848879,-1717.87,0.00011371,2]
[327128354,1715845848888,-500.0,0.00011371,2]
[327128355,1715845848899,-500.0,0.00011371,2]
[327128356,1715845848908,-500.0,0.00011371,2]
[327128357,1715845848917,-500.0,0.00011371,2]
[327128358,1715845848926,-500.0,0.00011371,2]
[327128359,1715845848937,-500.0,0.00011371,2]
[327128360,1715845848946,-611.67,0.00011371,2]
[327128361,1715845848959,-500.0,0.00011371,2]
[327128362,1715845848969,-673.83,0.00011371,2]
[327128363,1715845848978,-500.0,0.00011371,2]
[327128364,1715845848988,-625.62102227,0.00011371,2]
[327128365,1715845848997,-500.0,0.00011371,2]
[327128366,1715845849008,-660.08,0.00011371,2]
[327128367,1715845849019,-500.0,0.00011371,2]
[327128368,1715845849030,-500.0,0.00011371,2]
[327128369,1715845849039,-500.0,0.00011372,2]
[327128370,1715845849048,-500.0,0.00011372,2]
[327128371,1715845849057,-500.0,0.00011372,2]
[327128372,1715845849066,-531.75109047,0.00011372,2]
[327128373,1715845849075,-500.0,0.00011372,2]
[327128374,1715845849085,-500.0,0.00011372,2]
[327128375,1715845849095,-500.0,0.00011372,2]
[327128376,1715845849104,-500.0,0.00011372,2]
[327128377,1715845849114,-500.0,0.00011372,2]
[327128378,1715845849123,-507.31488605,0.00011372,2]
[327128379,1715845849133,-500.0,0.00011372,2]
[327128380,1715845849142,-500.0,0.00011372,2]
[327128381,1715845849152,-500.0,0.00011372,2]
[327128382,1715845849161,-500.0,0.00011372,2]
[327128383,1715845849170,-500.0,0.00011372,2]
[327128384,1715845849179,-500.0,0.00011372,2]
[327128385,1715845849188,-500.0,0.00011372,2]
[327128386,1715845849198,-500.0,0.00011372,2]
[327128387,1715845849207,-500.0,0.00011372,2]
[327128388,1715845849216,-500.0,0.00011372,2]
[327128389,1715845849225,-500.0,0.00011372,2]
[327128390,1715845849235,-500.0,0.00011372,2]
[327128391,1715845849244,-366.55367976,0.00011372,2]
[327128392,1715845849254,-500.0,0.00011372,2]
[327128393,1715845849263,-500.0,0.00011372,2]
[327128394,1715845849272,-500.0,0.00011372,2]
[327128395,1715845849282,-500.0,0.00011372,2]
[327128396,1715845849291,-500.0,0.00011372,2]
[327128397,1715845849300,-500.0,0.00011372,2]
[327128398,1715845849309,-500.0,0.00011372,2]
[327128399,1715845849319,-500.0,0.00011372,2]
[327128400,1715845849329,-242.75943872,0.00011372,2]
[327128401,1715845849338,-500.0,0.00011372,2]
[327128402,1715845849348,-500.0,0.00011372,2]
[327128403,1715845849357,-500.0,0.00011372,2]
[327128404,1715845849367,-238.76432863,0.00011372,2]
[327128405,1715845849376,-500.0,0.00011372,2]
[327128406,1715845849385,-500.0,0.00011372,2]
[327128407,1715845849395,-500.0,0.00011372,2]
[327128408,1715845849403,-500.0,0.00011372,2]
[327128409,1715845849413,-324.53741576,0.00011372,2]
[327128410,1715845849422,-500.0,0.00011372,2]
[327128411,1715845849431,-500.0,0.00011372,2]
[327128412,1715845849440,-500.0,0.00011372,2]
[327128413,1715845849449,-500.0,0.00011372,2]
[327128414,1715845849460,-500.0,0.00011372,2]
[327128415,1715845849470,-500.0,0.00011372,2]
[327128416,1715845849480,-500.0,0.00011372,2]
[327128417,1715845849491,-522.56871935,0.00011372,2]
[327128418,1715845849500,-500.0,0.00011372,2]
[327128419,1715845849509,-500.0,0.00011372,2]
[327128420,1715845849518,-500.0,0.00011372,2]
[327128421,1715845849527,-500.0,0.00011372,2]
[327128422,1715845849537,-500.0,0.00011372,2]
[327128423,1715845849545,-500.0,0.00011372,2]
[327128424,1715845849554,-500.0,0.00011372,2]
[327128425,1715845849563,-500.0,0.00011372,2]
[327128426,1715845849572,-500.0,0.00011372,2]
[327128427,1715845849581,-500.0,0.00011372,2]
[327128428,1715845849589,-500.0,0.00011372,2]
[327128429,1715845849599,-500.0,0.00011372,2]
[327128430,1715845849607,-500.0,0.00011372,2]
[327128431,1715845849616,-500.0,0.00011372,2]
[327128432,1715845849624,-500.0,0.00011372,2]
[327128433,1715845849634,-506.48865916,0.00011372,2]
[327128434,1715845849643,-951.32,0.00011372,2]
[327128435,1715845849652,-500.0,0.00011372,2]
[327128436,1715845849661,-500.0,0.00011372,2]
[327128437,1715845849670,-500.0,0.00011372,2]
[327128438,1715845849679,-512.66,0.00011372,2]
[327128439,1715845849688,-500.0,0.00011372,2]
[327128440,1715845849698,-500.0,0.00011372,2]
[327128441,1715845849707,-500.0,0.00011372,2]
[327128442,1715845849716,-500.0,0.00011372,2]
[327128443,1715845849724,-500.0,0.00011372,2]
[327128444,1715845849733,-255.5162419,0.00011372,2]
[327128445,1715845849743,-500.0,0.00011372,2]
[327128446,1715845849751,-500.0,0.00011372,2]
[327128447,1715845849760,-500.0,0.00011372,2]
[327128448,1715845849769,-500.0,0.00011372,2]
[327128449,1715845849778,-500.0,0.00011372,2]
[327128450,1715845849787,-500.0,0.00011372,2]
[327128451,1715845849797,-500.0,0.00011372,2]
[327128452,1715845849806,-500.0,0.00011372,2]
[327128453,1715845849815,-500.0,0.00011372,2]
[327128454,1715845849824,-500.0,0.00011372,2]
[327128455,1715845849833,-745.94,0.00011372,2]
[327128456,1715845849844,-500.0,0.00011372,2]
[327128457,1715845849853,-500.0,0.00011372,2]
[327128458,1715845849862,-500.0,0.00011372,2]
[327128459,1715845849871,-500.0,0.00011372,2]
[327128460,1715845849881,-500.0,0.00011372,2]
[327128461,1715845849890,-500.0,0.00011372,2]
[327128462,1715845849900,-500.0,0.00011372,2]
[327128463,1715845849909,-500.0,0.00011372,2]
[327128464,1715845849919,-500.0,0.00011372,2]
[327128465,1715845849927,-708.51,0.00011372,2]
[327128466,1715845849939,-500.0,0.00011372,2]
[327128467,1715845849948,-195.13669836,0.00011372,2]
[327128468,1715845849957,-1009.75,0.00011372,2]
[327128469,1715845849967,-500.0,0.00011372,2]
[327128470,1715845849976,-500.0,0.00011372,2]
[327128471,1715845849985,-500.0,0.00011372,2]
[327128472,1715845849995,-500.0,0.00011372,2]
[327128473,1715845850004,-500.0,0.00011372,2]
[327128474,1715845850014,-500.0,0.00011372,2]
[327128475,1715845850026,-511.94867814,0.00011372,2]
[327128476,1715845850036,-500.0,0.00011372,2]
[327128477,1715845850045,-500.0,0.00011372,2]
[327128478,1715845850054,-500.0,0.00011372,2]
[327128479,1715845850063,-500.0,0.00011372,2]
[327128480,1715845850072,-526.26105331,0.00011372,2]
[327128481,1715845850081,-500.0,0.00011372,2]
[327128482,1715845850091,-500.0,0.00011372,2]
[327128483,1715845850100,-635.45,0.00011372,2]
[327128484,1715845850110,-524.64,0.00011372,2]
[327128485,1715845850119,-500.0,0.00011372,2]
[327128486,1715845850128,-545.20455152,0.00011372,2]
[327128487,1715845850137,-426.67906917,0.00011372,2]
[327128488,1715845850147,-500.0,0.00011372,2]
[327128489,1715845850157,-500.0,0.00011372,2]
[327128490,1715845850166,-500.0,0.00011372,2]
[327128491,1715845850176,-500.0,0.00011372,2]
[327128492,1715845850185,-500.0,0.00011372,2]
[327128493,1715845850194,-500.0,0.00011372,2]
[327128494,1715845850203,-500.0,0.00011372,2]
[327128495,1715845850212,-500.0,0.00011372,2]
[327128496,1715845850221,-500.0,0.00011372,2]
[327128497,1715845850230,-500.0,0.00011372,2]
[327128498,1715845850240,-500.0,0.00011372,2]
[327128499,1715845850251,-500.0,0.00011372,2]
[327128500,1715845850262,-500.0,0.00011372,2]
[327128501,1715845850273,-500.0,0.00011372,2]
[327128502,1715845850283,-636.47,0.00011372,2]
[327128503,1715845850294,-500.0,0.00011372,2]
[327128504,1715845850303,-500.0,0.00011372,2]
[327128505,1715845850314,-500.0,0.00011372,2]
[327128506,1715845850324,-500.0,0.00011372,2]
[327128507,1715845850333,-827.16,0.00011372,2]
[327128508,1715845850342,-500.0,0.00011372,2]
[327128509,1715845850352,-500.0,0.00011372,2]
[327128510,1715845850362,-500.0,0.00011372,2]
[327128511,1715845850373,-500.0,0.00011372,2]
[327128512,1715845850384,-575.0,0.00011372,2]
[327128513,1715845850395,-500.0,0.00011372,2]
[327128514,1715845850405,-500.0,0.00011372,2]
[327128515,1715845850414,-500.0,0.00011372,2]
[327128516,1715845850424,-500.0,0.00011372,2]
[327128517,1715845850435,-500.0,0.00011372,2]
[327128518,1715845850445,-500.0,0.00011372,2]
[327128519,1715845850455,-500.0,0.00011372,2]
[327128520,1715845850464,-500.0,0.00011372,2]
[327128521,1715845850474,-500.0,0.00011372,2]
[327128522,1715845850485,-530.24237432,0.00011372,2]
[327128523,1715845850496,-500.0,0.00011372,2]
[327128524,1715845850505,-509.8457932,0.00011372,2]
[327128525,1715845850514,-851.97,0.00011372,2]
[327128526,1715845850525,-563.5,0.00011372,2]
[327128527,1715845850535,-500.0,0.00011372,2]
[327128528,1715845850545,-500.0,0.00011372,2]
[327128529,1715845850555,-500.0,0.00011372,2]
[327128530,1715845850564,-500.0,0.00011372,2]
[327128531,1715845850573,-500.0,0.00011372,2]
[327128532,1715845850584,-500.0,0.00011372,2]
[327128533,1715845850594,-505.75,0.00011372,2]
[327128534,1715845850605,-500.0,0.00011372,2]
[327128535,1715845850615,-500.0,0.00011372,2]
[327128536,1715845850625,-500.0,0.00011372,2]
[327128537,1715845850634,-500.0,0.00011372,2]
[327128538,1715845850644,-500.0,0.00011372,2]
[327128539,1715845850654,-504.25444182,0.00011372,2]
[327128540,1715845850664,-636.68402209,0.00011372,2]
[327128541,1715845850674,-500.0,0.00011372,2]
[327128542,1715845850683,-500.0,0.00011372,2]
[327128543,1715845850692,-500.0,0.00011372,2]
[327128544,1715845850702,-520.63,0.00011372,2]
[327128545,1715845850712,-500.0,0.00011372,2]
[327128546,1715845850722,-920.08,0.00011372,2]
[327128547,1715845850733,-500.0,0.00011372,2]
[327128548,1715845850743,-500.0,0.00011372,2]
[327128549,1715845850752,-500.0,0.00011372,2]
[327128550,1715845850761,-500.0,0.00011372,2]
[327128551,1715845850771,-500.0,0.00011372,2]
[327128552,1715845850780,-500.0,0.00011372,2]
[327128553,1715845850790,-500.0,0.00011372,2]
[327128554,1715845850800,-505.99,0.00011372,2]
[327128555,1715845850810,-500.0,0.00011372,2]
[327128556,1715845850819,-500.0,0.00011372,2]
[327128557,1715845850829,-500.0,0.00011372,2]
[327128558,1715845850838,-500.0,0.00011372,2]
[327128559,1715845850848,-500.0,0.00011372,2]
[327128560,1715845850861,-500.0,0.00011372,2]
[327128561,1715845850872,-500.0,0.00011372,2]
[327128562,1715845850881,-500.0,0.00011372,2]
[327128563,1715845850891,-500.0,0.00011372,2]
[327128564,1715845850901,-500.0,0.00011372,2]
[327128565,1715845850910,-500.0,0.00011372,2]
[327128566,1715845850920,-604.46,0.00011372,2]
[327128567,1715845850931,-1087.89,0.00011372,2]
[327128568,1715845850943,-500.0,0.00011372,2]
[327128569,1715845850957,-500.0,0.00011372,2]
[327128570,1715845850966,-500.0,0.00011372,2]
[327128571,1715845850975,-540.99,0.00011372,2]
[327128572,1715845850986,-500.0,0.00011372,2]
[327128573,1715845850995,-500.0,0.00011372,2]
[327128574,1715845851006,-500.0,0.00011372,2]
[327128575,1715845851017,-500.0,0.00011372,2]
[327128576,1715845851030,-500.0,0.00011372,2]
[327128577,1715845851040,-500.0,0.00011372,2]
[327128578,1715845851051,-504.12674828,0.00011372,2]
[327128579,1715845851061,-500.0,0.00011372,2]
[327128580,1715845851070,-518.18407635,0.00011372,2]
[327128581,1715845851080,-500.0,0.00011372,2]
[327128582,1715845851090,-500.0,0.00011372,2]
[327128583,1715845851100,-500.0,0.00011372,2]
[327128584,1715845851109,-500.0,0.00011372,2]
[327128585,1715845851119,-500.0,0.00011372,2]
[327128586,1715845851128,-500.0,0.00011372,2]
[327128587,1715845851138,-500.0,0.00011372,2]
[327128588,1715845851149,-530.96,0.00011372,2]
[327128589,1715845851158,-500.0,0.00011372,2]
[327128590,1715845851167,-500.0,0.00011372,2]
[327128591,1715845851177,-500.0,0.00011372,2]
[327128592,1715845851186,-500.0,0.00011372,2]
[327128593,1715845851196,-500.0,0.00011372,2]
[327128594,1715845851206,-500.0,0.00011372,2]
[327128595,1715845851215,-500.0,0.00011372,2]
[327128596,1715845851225,-500.0,0.00011372,2]
[327128597,1715845851236,-500.0,0.00011372,2]
[327128598,1715845851246,-500.0,0.00011372,2]
[327128599,1715845851257,-670.92,0.00011372,2]
[327128600,1715845851267,-768.88,0.00011372,2]
[327128601,1715845851277,-500.0,0.00011372,2]
[327128602,1715845851287,-500.0,0.00011372,2]
[327128603,1715845851297,-500.0,0.00011372,2]
[327128604,1715845851306,-500.0,0.00011372,2]
[327128605,1715845851316,-500.0,0.00011372,2]
[327128606,1715845851325,-501.47412167,0.00011372,2]
[327128607,1715845851334,-931.66,0.00011372,2]
[327128608,1715845851344,-500.0,0.00011372,2]
[327128609,1715845851353,-500.0,0.00011372,2]
[327128610,1715845851362,-500.0,0.00011372,2]
[327128611,1715845851372,-529.08,0.00011372,2]
[327128612,1715845851381,-500.0,0.00011372,2]
[327128613,1715845851390,-500.0,0.00011372,2]
[327128614,1715845851401,-500.0,0.00011372,2]
[327128615,1715845851411,-518.43,0.00011372,2]
[327128616,1715845851420,-500.0,0.00011372,2]
[327128617,1715845851429,-500.0,0.00011372,2]
[327128618,1715845851438,-516.20999089,0.00011372,2]
[327128619,1715845851447,-693.94,0.00011372,2]
[327128620,1715845851456,-500.0,0.00011372,2]
[327128621,1715845851466,-500.0,0.00011372,2]
[327128622,1715845851475,-500.0,0.00011372,2]
[327128623,1715845851484,-500.0,0.00011372,2]
[327128624,1715845851493,-500.0,0.00011372,2]
[327128625,1715845851502,-500.0,0.00011372,2]
[327128626,1715845851511,-500.0,0.00011372,2]
[327128627,1715845851521,-500.0,0.00011372,2]
[327128628,1715845851531,-564.31,0.00011372,2]
[327128629,1715845851540,-527.12066101,0.00011372,2]
[327128630,1715845851550,-500.0,0.00011372,2]
[327128631,1715845851559,-500.0,0.00011372,2]
[327128632,1715845851569,-449.37186751,0.00011372,2]
[327128633,1715845851579,-500.0,0.00011372,2]
[327128634,1715845851588,-500.0,0.00011372,2]
[327128635,1715845851598,-500.0,0.00011372,2]
[327128636,1715845851607,-500.0,0.00011372,2]
[327128637,1715845851617,-500.0,0.00011372,2]
[327128638,1715845851627,-500.0,0.00011372,2]
[327128639,1715845851636,-500.0,0.00011372,2]
[327128640,1715845851646,-600.08,0.00011372,2]
[327128641,1715845851656,-502.77827233,0.00011372,2]
[327128642,1715845851665,-504.40668433,0.00011372,2]
[327128643,1715845851674,-500.0,0.00011372,2]
[327128644,1715845851683,-500.0,0.00011372,2]
[327128645,1715845851693,-6532.31,0.00011372,2]
[327128646,1715845851702,-500.0,0.00011372,2]
[327128647,1715845851711,-636.56258995,0.00011372,2]
[327128648,1715845851720,-532.31,0.00011372,2]
[327128649,1715845851729,-500.0,0.00011372,2]
[327128650,1715845851738,-500.0,0.00011372,2]
[327128651,1715845851747,-644.67,0.00011372,2]
[327128652,1715845851756,-500.0,0.00011372,2]